Cogmind - Beta 10.2 *** ADVENTURER MODE // 2020.11.10 @ 22:31:07 // Halloween2020/ForbiddenLore Player: Ms Vella Result: Destroyed by D-53 Grenadier with Mini Grenade Launcher Performance ------------- Evolutions (0) 0 Regions Visited (2) 400 Robots Destroyed (24) 120 Value Destroyed (442) 442 Prototype IDs (7) 140 Alien Tech Used (0) 0 Bonus (-511) -511 TOTAL SCORE: 591 Bonus ------- Follower Combat Kills 14 Friendly Fire -525 Cogmind --------- Core Integrity 0/250 Matter 188/300 Energy 99/100 System Corruption 1% Temperature Cool (0) Movement Core (550) Ox10 Location -10/Mines Parts ------- > --- POWER (1) -------- (None) > --- PROPULSION (2) --- (None) > --- UTILITY (2) ------ Large Storage Unit Large Storage Unit > --- WEAPON (2) ------- (None) > --- INVENTORY (16) --- Ion Engine Ion Engine Medium Storage Unit Medium Storage Unit Large Storage Unit High-capacity Matter Pod (200) Signal Interpreter Signal Interpreter Targeting Computer Light Armor Plating Grenade Launcher Grenade Launcher Rocket Launcher Peak State ------------ > --- POWER ------------ Light Ion Engine > --- PROPULSION ------- Light Treads Light Treads > --- UTILITY ---------- Small Storage Unit Light Armor Plating > --- WEAPON ----------- Particle Gun Assault Rifle > --- INVENTORY -------- Light Ion Engine Light Ion Engine Assault Rifle Light Assault Rifle Grenade Launcher Grenade Launcher [Rating: 8] Favorites ----------- Power Ion Engine Engine Ion Engine Propulsion Light Treads Treads Light Treads Leg Aluminum Leg Utility Large Storage Unit Storage Large Storage Unit Protection Light Armor Plating Weapon Assault Rifle Energy Gun EM Pulse Gun Energy Cannon Beam Cannon Ballistic Gun Assault Rifle Launcher Grenade Launcher Build | -11 -10 -10 ------- Run | Scr Mat Min Slots Evolved . | . . . Power . | . . . Propulsion . | . . . Utility . | . . . Weapon . | . . . Parts Attached 19 | 2 10 7 Power 2 | . 2 . Engine 2 | . 2 . Core . | . . . Reactor . | . . . Propulsion 3 | 2 . 1 Treads 2 | 2 . . Leg 1 | . . 1 Wheel . | . . . Hover . | . . . Flight . | . . . Utility 5 | . 5 . Device . | . . . Storage 3 | . 3 . Processor . | . . . Hackware . | . . . Protection 2 | . 2 . Artifact . | . . . Weapon 9 | . 3 6 Energy Gun 4 | . 3 1 Energy Cannon 1 | . . 1 Ballistic Gun 2 | . . 2 Ballistic Cannon . | . . . Launcher 2 | . . 2 Special Weapon . | . . . Impact Weapon . | . . . Slashing Weapon . | . . . Piercing Weapon . | . . . Special Melee Weapon . | . . . Unidentified Prototypes . | . . . Parts Lost 8 | . . 8 Power 1 | . . 1 Propulsion 3 | . . 3 Utility . | . . . Weapon 4 | . . 4 Highest Loss Streak 6 | . . 6 Average Slot Usage (%) 98 | . 98 98 Engine 13 | . 14 13 Treads 24 | . 28 14 Leg 3 | . . 12 Storage 24 | . 22 28 Protection 2 | . 3 . Energy Gun 11 | . 11 11 Ballistic Gun 15 | . 16 11 Launcher 1 | . . 3 Naked Turns . | . . . Heaviest Build 43 | 11 41 43 Greatest Support 40 | 3 40 40 Greatest Overweight (x) 10 | 3 1 10 Average Overweight (x) . | 3 . 1 Largest Inventory Capacity 16 | 6 16 16 Average Capacity 11 | 6 10 16 Most Carried 14 | 6 13 14 Average Carried 9 | 4 8 13 Final Capacity 16 | 6 16 16 Final Carried 13 | 2 13 13 Class Distribution -------------------- 100% | Mutant Dominant Class ---------------- Mutant | -10/Materials Mutant | -10/Mines Resources | -11 -10 -10 ----------- Run | Scr Mat Min Matter Collected 697 | 197 421 79 Remotely . | . . . Salvage Created 641 | . 379 262 Parts 43 | . 29 14 Haulers Intercepted . | . . . Recyclers Shooed . | . . . Parts Field Recycled . | . . . Retrieved Matter . | . . . Parts Self-Destructed . | . . . Prevented . | . . . Kills | -11 -10 -10 ------- Run | Scr Mat Min Combat Hostiles Destroyed 24 | . 12 12 Guns 18 | . 12 6 AOE 6 | . . 6 Classes Destroyed 6 | . 5 1 Worker 1 | . 1 . Tunneler 1 | . 1 . Watcher 1 | . 1 . Swarmer 10 | . 6 4 Grunt 11 | . 6 5 Assembled 6 | . . 6 Best Kill Streak 6 | . 4 6 Combat Bots Only 6 | . 3 6 Max Kills in Single Turn 4 | . 2 4 Gunslinging 1 | . 1 1 Exploded 2 | . . 2 Melee . | . . . Uniques/NPCs Destroyed . | . . . Combat | -11 -10 -10 -------- Run | Scr Mat Min Damage Taken 1122 | . 328 794 Core 268 | . 37 231 Absorbed by Shields . | . . . Core Remaining (%) 100 | 100 . . Volleys Fired 57 | . 30 27 Largest 2 | . 2 2 Hottest 100 | . 85 100 Shots Fired 105 | . 57 48 Gun 94 | . 57 37 Cannon 2 | . . 2 Launcher 9 | . . 9 Special . | . . . Kinetic 62 | . 44 18 Thermal 11 | . 9 2 Explosive 9 | . . 9 Electromagnetic 23 | . 4 19 Robot Hit Streak 11 | . 11 11 Robot Miss Streak 2 | . 1 2 Penetration Max . | . . . Secondary Targets 8 | . 5 3 Max Gunslinging Chain 1 | . 1 1 Shots Hit Robots 79 | . 46 33 Core Hits 51 | . 21 30 Critical Hits . | . . . Critical Kills . | . . . Critical Parts Destroyed . | . . . Melee Attacks . | . . . Impact . | . . . Slashing . | . . . Piercing . | . . . Sneak Attacks . | . . . Combat Hostiles . | . . . Follow-up Attacks . | . . . Damage Inflicted 1525 | . 621 904 Guns 849 | . 621 228 Cannons 35 | . . 35 Explosions 641 | . . 641 Melee . | . . . Ramming . | . . . Kinetic 534 | . 452 82 Thermal 170 | . 135 35 Explosive 641 | . . 641 Electromagnetic 180 | . 34 146 Impact . | . . . Slashing . | . . . Piercing . | . . . Highest Corruption 1 | . 1 1 Average Corruption 1 | . 1 1 Corruption Purged . | . . . Effects 4 | . . 4 Message Errors 3 | . . 3 Data Loss (minor) 1 | . . 1 Overload Shots . | . . . Overflow Damage 24 | . . 24 Projectiles . | . . . Explosions 24 | . . 24 Melee . | . . . Knockbacks . | . . . Impact . | . . . Kinetic . | . . . Secondary . | . . . Self-Inflicted Damage 4 | . . 4 Shots 1 | . . 1 Rammed 1 | . . 1 Targets Rammed 1 | . . 1 Kicked . | . . . Crushed . | . . . Highest Temperature 168 | . 168 103 Average Temperature 49 | . 66 35 Received Heat Transfer 294 | . 138 156 Siege Activations . | . . . Robots Corrupted . | . . . Combat Hostiles . | . . . Parts Fried . | . . . Impact Corruptions . | . . . Robots Melted . | . . . Combat Hostiles . | . . . Parts Melted . | . . . Heat Transferred 407 | . 333 74 Parts Sabotaged . | . . . Parts Stolen . | . . . Parts Stripped . | . . . Power Chain Reactions . | . . . Missiles Intercepted . | . . . Alert | -11 -10 -10 ------- Run | Scr Mat Min Peak Influence 310 | . 310 128 Initial 7 | . . 7 Average 65 | . 67 61 Maximum Alert Level 1 | . 1 . Low Security (%) 94 | 100 92 100 Level 1 5 | . 7 . Level 2 . | . . . Level 3 . | . . . Level 4 . | . . . Level 5 . | . . . High Security . | . . . Max Security . | . . . Squads Dispatched 2 | . 2 . Investigation 2 | . 2 . Extermination . | . . . Reinforcement . | . . . Assault . | . . . Garrison . | . . . Intercept . | . . . Construction Impeded . | . . . Haulers Reinforced . | . . . Stealth | -11 -10 -10 --------- Run | Scr Mat Min Distress Signals 3 | . 3 . Communications Jammed . | . . . Distress Signals . | . . . Times Spotted 38 | . 22 16 Peak Tracking Total 5 | . 4 5 Tactical Retreats . | . . . Traps | -11 -10 -10 ------- Run | Scr Mat Min Traps Triggered 1 | . 1 . Indirectly . | . . . Trap Hack Attempts . | . . . Triggered . | . . . Disarmed 5 | . 5 . Reprogrammed . | . . . Reused . | . . . Traps Extracted . | . . . Installed . | . . . Triggered . | . . . Machines | -11 -10 -10 ---------- Run | Scr Mat Min Machines Disabled 2 | . . 2 Max in Single Turn 1 | . . 1 Machines Sabotaged . | . . . Garrisons Compromised . | . . . Overloaded Fab Kills . | . . . Fab Network Shutdowns . | . . . Hacking | -11 -10 -10 --------- Run | Scr Mat Min Machines Accessed 8 | . 8 . Terminals 7 | . 7 . Fabricators . | . . . Repair Stations . | . . . Recycling Units 1 | . 1 . Scanalyzers . | . . . Garrison Access . | . . . Total Hacks 36 | . 36 . Successful 20 | . 20 . Failed 15 | . 15 . Catastrophic . | . . . Database Lockouts 1 | . 1 . Manual 28 | . 28 . Terminals 35 | . 35 . Fabricators . | . . . Repair Stations . | . . . Recycling Units 1 | . 1 . Scanalyzers . | . . . Garrison Access . | . . . Terminal Hacks 16 | . 16 . Prototype ID Bank 9 | . 9 . Alert Level 1 | . 1 . Locate Traps 1 | . 1 . Disarm Traps 2 | . 2 . Hauler Manifests 2 | . 2 . Registered Components 1 | . 1 . Fabricator Hacks . | . . . Repair Station Hacks . | . . . Recycling Unit Hacks . | . . . Scanalyzer . | . . . Garrison Access Hacks . | . . . Unauthorized Hacks 4 | . 4 . Terminals 3 | . 3 . Botnet 3 | . 3 . Fabricators . | . . . Repair Stations . | . . . Recycling Units 1 | . 1 . Tunnel 1 | . 1 . Scanalyzers . | . . . Garrison Access . | . . . Data Cores Recovered . | . . . Used . | . . . Hacking Detections 7 | . 7 . Full Trace Events 2 | . 2 . Feedback Events 1 | . 1 . Corruption 1 | . 1 . Feedback Blocked . | . . . Robot Schematics Acquired . | . . . Robots Built . | . . . Matter . | . . . Time . | . . . Total Robot Build Rating . | . . . Part Schematics Acquired . | . . . Parts Built . | . . . Matter . | . . . Time . | . . . Total Part Build Rating . | . . . Parts Repaired . | . . . Time . | . . . Parts Recycled . | . . . Recycled Matter . | . . . Retrieved Matter . | . . . Retrieved Components . | . . . Parts Scanalyzed . | . . . Part Schematics Acquired . | . . . Parts Damaged . | . . . Bothacking | -11 -10 -10 ------------ Run | Scr Mat Min Used RIF Installer . | . . . Robots Hacked . | . . . Non-combat . | . . . Combat . | . . . Robot Hacks Applied . | . . . Relay Couplers Released . | . . . Robots Rewired . | . . . Allies Hacked . | . . . Hacks Repelled . | . . . Allies | -11 -10 -10 -------- Run | Scr Mat Min Total Allies 3 | . . 3 Largest Group 3 | . . 3 Highest-Rated Group 40 | . . 40 Highest-Rated Ally 16 | . . 16 Total Orders . | . . . Ally Attacks 21 | . . 21 Total Damage 188 | . . 188 Kills 3 | . . 3 Allies Corrupted . | . . . Allies Melted . | . . . Intel | -11 -10 -10 ------- Run | Scr Mat Min Robot Analysis Total . | . . . Derelict Logs Recovered 1 | . . 1 Drone Launches . | . . . Drone Recoveries . | . . . Exploration | -11 -10 -10 ------------- Run | Scr Mat Min Turns Passed 2182 | 5 1583 594 Spaces Moved 1154 | 1 874 279 Core 2 | 1 . 1 Treads 1151 | . 874 277 Legs 1 | . . 1 Wheels . | . . . Hover . | . . . Flight . | . . . Fastest Speed 160 | 200 160 160 Average Speed 168 | 200 163 183 Slowest Speed 550 | 200 180 550 Overloaded Moves . | . . . Propulsion Burnouts . | . . . Robots Hopped . | . . . Cave-ins Triggered 1 | . . 1 Exploration Rate (%) 56 | 2 99 69 Regions Visited 2 Branch Regions 1 Pre-discovered Areas 1 | . 1 . Known Exits Taken . | . . . Unknown Exits Taken 2 | 1 1 . Scrap Searched 1 | . . 1 Spaces Dug . | . . . Terrain Destroyed 78 | . . 78 Melee . | . . . Projectile . | . . . AOE 78 | . . 78 Terrain Rammed . | . . . Walls Destroyed . | . . . Machines Disabled . | . . . Actions | -11 -10 -10 --------- Run | Scr Mat Min Total 1292 | 6 968 318 Wait 29 | . 28 1 Move 1152 | . 873 279 Hop . | . . . Pick Up 21 | . 18 3 Fast Attach 6 | . 6 . Attach 6 | 2 1 3 Detach . | . . . Swap 7 | . 3 4 Drop 13 | 4 9 . Fire 57 | . 30 27 Melee . | . . . Ram . | . . . Kick . | . . . Crush 1 | . . 1 Escape Stasis . | . . . Rewire . | . . . Trap . | . . . Miscellaneous . | . . . Route ------- -11/Scrapyard -10/Materials (discovered 5 exits: [*Mat x3] / [*Min x2]) -10/Mines (discovered 1 exit: [*Mat]) History --------- Turn | Location | Event 6 | -11/Scrapyard | Discovered new exit (range 0) 6 | -11/Scrapyard | Entered Materials 310 | -10/Materials | Build established: Mutant 357 | -10/Materials | Discovered new exit (range 16) 472 | -10/Materials | Discovered new exit (range 16) 698 | -10/Materials | Discovered new exit (range 4) 1240 | -10/Materials | Central database locked down 1332 | -10/Materials | Discovered new exit (range 8) 1408 | -10/Materials | Discovered new exit (range 16) 1589 | -10/Materials | Entered Mines 1596 | -10/Mines | Received a Rocket Launcher from a helpful Derelict 1601 | -10/Mines | Discovered new exit (range 10) 1793 | -10/Mines | Learned location of 1 exit from Materials 2006 | -10/Mines | Assisted by bots powering up and referring to "LRC-V3" 2069 | -10/Mines | Assembled infested the area 2175 | -10/Mines | Core integrity fell below 50% 2181 | -10/Mines | Crushed by falling debris 2182 | -10/Mines | Core integrity fell below 20% 2183 | -10/Mines | Destroyed by D-53 Grenadier with Mini Grenade Launcher Last Messages --------------- 02117_ U-05 Engineer lays Concrete. 02119_ U-05 Engineer builds a Wall. 02123_ U-05 Engineer lays Concrete. 02126_ U-05 Engineer builds a Wall. 02130_ U-05 Engineer lays Concrete. 02132_ The unstable cave ceiling collapses. 02133_ U-05 Engineer builds a Wall. 02137_ U-05 Engineer lays Concrete. 02138_ U-05 Engineer builds a Wall. 02170_ %|5EG# Map ----- +----------------------------------------------------+ | ???????# #??????????????? #?## | | ???????# #??????????????? ???# | | ???????# #??????????????? ????? | | ????#### #????????????????### ?????? | | ???## #??????????????????##??????? | | ??## #??????????????????????????? | | ??# #??????????????????????????? | | ??# ##??????????????????????????? | | ??# [*=##??????????#????????????????? | | ??# =%##????????? #????????????????? | | ??##=*%####????? #????????????????? | | ???##%=*# #??? #????????????????? | | ??### = ## #????????????????? | | ?## # #???????????????????????? | | ?# ## ### #???????????????????????? | | ?# # #?? ??????????????????????? | | ## ## ##???? #????????????????????? | | # #??????#????????????????????? | | ## ## #???????????????????????????? | | ?# #?###???????????????????????? | | ?## # #?# ???????????????????????? | | ?# # #?# ####????????????????????? | | ?## % ### ####?????????????????? | | ?# ## ###???????????????? | | ?# < ##??????????????? | | ?## # @ #??????????????? | | ?# # # #??????????????? | | ?# ## # # ##??????????????? | | ?#### # ## ###???????????????? | | ????###### #?????????????????? | | ?????????## ##?????????????????? | | ??????????## #d ##??????????????????? | | ???????????# #???????????????????? | | ??????????? #???????????????????? | | ??????????? " ???????????????????? | | ??????????## ""d ???????????????????? | | ???????????# ??????????????????? | | ???????????# " ##??????????????????? | | ???????????# " %???????????????????? | | ???????????# ? ???????????????????? | | ???????????# ? ???????????????????? | | ???????????? ?? #???????????????????? | | ??????????????? ????????????????????? | | ?????????????????????????????????????? | | ?????????????????????????????????????? | | ?????????????????????????????????????? | | ?????????????????????????????????????? | | ?????????????????????????????????????? | | ?????????????????????????????????????? | | ?????????????????????????????????????? | +----------------------------------------------------+ Best States ------------- Heat Dissipation 25 Energy Generation 10 Energy Capacity 250 Matter Stores 300 Matter Capacity 300 Sight Range 16 Terrain Scan Density 10 Armor Coverage 150 Resistance: KI 20 Resistance: TH 20 Resistance: EX 20 Resistance: EM 20 Resistance: I 20 Resistance: S 20 Resistance: P 20 Evasion (%) 40 Recoil Reduction 2 Offensive Hacking 10 Item Schematics ----------------- None Robot Schematics ------------------ None Fabricated ------------ Nothing Alien Tech Used ----------------- None Achievements -------------- None Challenges ------------ None Game ------ Seed MediumCatalystFirepult Manual? 0 Play Time 00:18:12 Cumulative 228.7 hours Start 2020.11.10 @ 22:16:02 End 2020.11.10 @ 22:31:07 Sessions 1 Manual Loads 0 Difficulty Adventurer Special Mode Halloween2020/ForbiddenLore Game No. 123 Rogue 1 Adventurer 122 Explorer 0 Win Type - Total 2 Types 2/0/0/0/0/0/0/0/0 Lore% 60 Gallery% 69 Achievement% 51 Wizard Run 0 Options --------- ASCII 0 Keyboard 0 Movement Mouse Keybinds 0 Fullscreen 0 Font 12/Smallcaps Map View 83x54 Tactical HUD 1 Map Filters NONE Filters NONE Steam 1 RUN: 5630f72a-61e4-4cf4-ae5f-a0ed8a959f50